[Event "Chelyabinskiy variant-A 2021"]
[Site "Chelyabinsk"]
[Date "2021.03.30"]
[Round "9.3"]
[White "Lysyj, Igor"]
[Black "Suleymenov, Alisher"]
[Result "1-0"]
[ECO "A65"]
[WhiteElo "2605"]
[BlackElo "2440"]
[Annotator "ChessBase"]
[PlyCount "103"]
[EventDate "2021.03.23"]
[EventType "swiss"]
[EventCountry "RUS"]
[SourceTitle "playchess.com"]
[Source "ChessBase"]
[SourceQuality "1"]
[TimeControl "5400+30"]

1. d4 {[%emt 0:04:49]} Nf6 {[%emt 0:00:00]} 2. c4 {[%emt 0:00:04]} c5 {[%emt 0:00:00]} 3. d5 {[%emt 0:00:03]} e6 {[%emt 0:00:00]} 4. Nc3 {[%emt 0:00:06]} exd5 {[%emt 0:00:00]} 5. cxd5 {[%emt 0:00:05]} d6 {[%emt 0:00:00]} 6. e4 {[%emt 0:00:33]} g6 {[%emt 0:00:00]} 7. h3 {[%emt 0:00:18]} Bg7 {[%emt 0:00:04]} 8. Nf3 {[%emt 0:00:04]} O-O {[%emt 0:00:04]} 9. Be3 {[%emt 0:00:02]} Na6 {[%emt 0:22:47]} 10. Bxa6 {[%emt 0:00:39]} bxa6 {[%emt 0:00:04]} 11. O-O {[%emt 0:00:23]} Re8 {[%emt 0:04:40]} 12. Qc2 {[%emt 0:03:08]} Rb8 {[%emt 0:04:57]} 13. Rfe1 {[%emt 0:11:55]} a5 {[%emt 0:08:44]} 14. Bf4 {[%emt 0:02:48]} Rb4 {[%emt 0:13:43]} 15. Rad1 {[%emt 0:14:10]} Bf5 {[%emt 0:09:29]} 16. Bg5 {[%emt 0:01:59]} Bd7 {[%emt 0:06:44]} 17. a3 {[%emt 0:07:41]} Rb6 {[%emt 0:00:59]} 18. e5 {[%emt 0:09:11]} dxe5 {[%emt 0:00:02]} 19. Nxe5 {[%emt 0:00:14]} h6 {[%emt 0:00:02]} 20. Bc1 {[%emt 0:00:30]} Rd6 {[%emt 0:06:00]} 21. Bf4 {[%emt 0:08:00]} Bf5 {[%emt 0:09:53]} 22. Qa4 {[%emt 0:01:41]} Rb6 {[%emt 0:01:24]} 23. Nc6 {[%emt 0:05:44]} Qd7 {[%emt 0:00:29]} 24. Qxa5 {[%emt 0:08:10]} Rxb2 {[%emt 0:05:31]} 25. Qxc5 {[%emt 0:00:11]} Rc2 {[%emt 0:02:26]} 26. Be5 {[%emt 0:07:04]} Ne4 {[%emt 0:03:35]} 27. Rxe4 {[%emt 0:00:07]} Bf8 {[%emt 0:00:27]} 28. Qd4 {[%emt 0:06:46]} Rxc3 {[%emt 0:00:24]} 29. Qxc3 {[%emt 0:00:04]} Bxe4 {[%emt 0:00:02]} 30. Qd4 {[%emt 0:01:05]} Bf5 {[%emt 0:01:27]} 31. a4 {[%emt 0:00:36]} h5 {[%emt 0:00:31]} 32. a5 {[%emt 0:01:39]} a6 {[%emt 0:00:01]} 33. Bg3 {[%emt 0:00:37]} Re4 {[%emt 0:01:08]} 34. Qc3 {[%emt 0:01:31]} h4 {[%emt 0:00:13]} 35. Be5 {[%emt 0:00:55]} Re2 {[%emt 0:01:06]} 36. Qf3 {[%emt 0:02:22]} Re4 {[%emt 0:00:10]} 37. Ba1 {[%emt 0:00:26]} Bg7 {[%emt 0:00:47]} 38. Bxg7 {[%emt 0:00:18]} Kxg7 {[%emt 0:00:01]} 39. Qc3+ {[%emt 0:00:13]} Kh7 {[%emt 0:00:22]} 40. Rd4 {[%emt 0:01:48]} Qe8 {[%emt 0:00:30]} 41. Kh2 {[%emt 0:00:56]} Kg8 {[%emt 0:00:32]} 42. Qc4 {[%emt 0:00:51]} Rxd4 {[%emt 0:00:51]} 43. Qxd4 {[%emt 0:00:04]} Bd7 {[%emt 0:00:36]} 44. Ne5 {[%emt 0:00:26]} Bf5 {[%emt 0:00:38]} 45. d6 {[%emt 0:00:14]} Qb8 {[%emt 0:00:31]} 46. Nc6 {[%emt 0:00:15]} Qf8 {[%emt 0:00:32]} 47. Ne7+ {[%emt 0:00:11]} Kh7 {[%emt 0:00:01]} 48. Qxh4+ {[%emt 0:00:08]} Kg7 {[%emt 0:00:00]} 49. Qd4+ {[%emt 0:00:44]} f6 {[%emt 0:01:04]} 50. Nxf5+ {[%emt 0:01:00]} gxf5 {[%emt 0:00:01]} 51. Qa7+ {[%emt 0:00:15]} Kg6 {[%emt 0:00:19]} 52. Qc7 {[%emt 0:00:09]} 1-0

[Event "Chelyabinskiy variant-A 2021"]
[Site "Chelyabinsk"]
[Date "2021.03.30"]
[Round "9.4"]
[White "Nesterov, Arseniy"]
[Black "Azarov, Sergei"]
[Result "1/2-1/2"]
[ECO "E17"]
[WhiteElo "2476"]
[BlackElo "2604"]
[Annotator "ChessBase"]
[PlyCount "29"]
[EventDate "2021.03.23"]
[EventType "swiss"]
[EventCountry "RUS"]
[SourceTitle "playchess.com"]
[Source "ChessBase"]
[SourceQuality "1"]
[TimeControl "5400+30"]

1. d4 {[%emt 0:00:00]} Nf6 {[%emt 0:00:00]} 2. c4 {[%emt 0:00:00]} e6 {[%emt 0:00:00]} 3. Nf3 {[%emt 0:00:02]} b6 {[%emt 0:00:03]} 4. g3 {[%emt 0:00:29]} Bb7 {[%emt 0:00:38]} 5. Bg2 {[%emt 0:00:05]} Be7 {[%emt 0:00:13]} 6. O-O {[%emt 0:00:05]} O-O {[%emt 0:00:28]} 7. Re1 {[%emt 0:02:18]} a5 {[%emt 0:01:13]} 8. Bg5 {[%emt 0:09:57]} d6 {[%emt 0:06:03]} 9. Nc3 {[%emt 0:01:33]} Ne4 {[%emt 0:01:53]} 10. Bxe7 {[%emt 0:00:27]} Qxe7 {[%emt 0:00:15]} 11. Qc2 {[%emt 0:03:02]} Nxc3 {[%emt 0:00:37]} 12. Qxc3 {[%emt 0:00:46]} Be4 {[%emt 0:10:07]} 13. Nd2 {[%emt 0:09:19]} Bxg2 {[%emt 0:00:46]} 14. Kxg2 {[%emt 0:00:02]} Nd7 {[%emt 0:00:49]} 15. e4 {[%emt 0:01:56]} 1/2-1/2

[Event "Chelyabinskiy variant-A 2021"]
[Site "Chelyabinsk"]
[Date "2021.03.30"]
[Round "9.5"]
[White "Fedorov, Alexei"]
[Black "Sitnikov, Anton"]
[Result "1-0"]
[ECO "B02"]
[WhiteElo "2529"]
[BlackElo "2437"]
[Annotator "ChessBase"]
[PlyCount "93"]
[EventDate "2021.03.23"]
[EventType "swiss"]
[EventCountry "RUS"]
[SourceTitle "playchess.com"]
[Source "ChessBase"]
[SourceQuality "1"]
[TimeControl "5400+30"]

1. e4 {[%emt 0:00:00]} Nf6 {[%emt 0:00:57]} 2. Nc3 {[%emt 0:00:07]} d6 {[%emt 0:01:45]} 3. g3 {[%emt 0:00:13]} Bg4 {[%emt 0:09:15]} 4. f3 {[%emt 0:00:23]} Bd7 {[%emt 0:00:10]} 5. d4 {[%emt 0:00:51]} e6 {[%emt 0:07:50]} 6. Be3 {[%emt 0:01:45]} d5 {[%emt 0:01:30]} 7. e5 {[%emt 0:00:59]} Ng8 {[%emt 0:00:30]} 8. f4 {[%emt 0:02:09]} Nh6 {[%emt 0:10:34]} 9. Nf3 {[%emt 0:00:48]} b6 {[%emt 0:06:48]} 10. Bh3 {[%emt 0:07:54]} f5 {[%emt 0:16:08]} 11. exf6 {[%emt 0:03:50]} Qxf6 {[%emt 0:00:30]} 12. g4 {[%emt 0:01:06]} Nf7 {[%emt 0:23:30]} 13. g5 {[%emt 0:08:55]} Qd8 {[%emt 0:07:40]} 14. Qe2 {[%emt 0:11:36]} Bb4 {[%emt 0:08:05]} 15. Bd2 {[%emt 0:00:39]} Qe7 {[%emt 0:01:06]} 16. O-O-O {[%emt 0:01:12]} Nd6 {[%emt 0:01:09]} 17. Nb1 {[%emt 0:05:45]} Ne4 {[%emt 0:00:31]} 18. Bxb4 {[%emt 0:01:23]} Qxb4 {[%emt 0:00:06]} 19. Nbd2 {[%emt 0:01:40]} Nxd2 {[%emt 0:00:47]} 20. Rxd2 {[%emt 0:00:23]} Nc6 {[%emt 0:00:33]} 21. Bxe6 {[%emt 0:04:09]} O-O-O {[%emt 0:00:05]} 22. Bxd7+ {[%emt 0:07:09]} Rxd7 {[%emt 0:00:04]} 23. Qe6 {[%emt 0:10:16]} Qd6 {[%emt 0:00:07]} 24. Qg4 {[%emt 0:01:29]} Kb7 {[%emt 0:01:01]} 25. Ne5 {[%emt 0:02:47]} Re7 {[%emt 0:00:04]} 26. Re1 {[%emt 0:01:34]} Rf8 {[%emt 0:00:12]} 27. c3 {[%emt 0:02:24]} g6 {[%emt 0:01:16]} 28. Rde2 {[%emt 0:01:10]} Rf5 {[%emt 0:00:17]} 29. Nd3 {[%emt 0:01:12]} Rxe2 {[%emt 0:00:47]} 30. Qxe2 {[%emt 0:01:34]} Rf7 {[%emt 0:01:04]} 31. Qe6 {[%emt 0:01:03]} Qxe6 {[%emt 0:00:17]} 32. Rxe6 {[%emt 0:00:05]} Re7 {[%emt 0:00:07]} 33. Rxe7 {[%emt 0:01:12]} Nxe7 {[%emt 0:00:04]} 34. Ne5 {[%emt 0:00:29]} c5 {[%emt 0:01:37]} 35. dxc5 {[%emt 0:01:35]} bxc5 {[%emt 0:00:03]} 36. Nd7 {[%emt 0:01:12]} Kc6 {[%emt 0:00:09]} 37. Nf6 {[%emt 0:00:07]} Kd6 {[%emt 0:01:18]} 38. Kd2 {[%emt 0:01:14]} Ke6 {[%emt 0:00:19]} 39. Nxh7 {[%emt 0:00:59]} Kf5 {[%emt 0:00:06]} 40. Ke3 {[%emt 0:00:35]} d4+ {[%emt 0:00:48]} 41. cxd4 {[%emt 0:00:57]} Nd5+ {[%emt 0:00:16]} 42. Kd3 {[%emt 0:01:04]} Nxf4+ {[%emt 0:00:10]} 43. Kc4 {[%emt 0:00:04]} cxd4 {[%emt 0:00:04]} 44. Kxd4 {[%emt 0:00:09]} Ne2+ {[%emt 0:01:30]} 45. Kc4 {[%emt 0:01:06]} Ng1 {[%emt 0:00:06]} 46. Kb5 {[%emt 0:01:22]} Nf3 {[%emt 0:00:07]} 47. Ka6 {[%emt 0:00:07]} 1-0

[Event "Chelyabinskiy variant-A 2021"]
[Site "Chelyabinsk"]
[Date "2021.03.30"]
[Round "9.6"]
[White "Utegaliyev, Azamat"]
[Black "Makarian, Rudik"]
[Result "1-0"]
[ECO "C65"]
[WhiteElo "2507"]
[BlackElo "2458"]
[Annotator "ChessBase"]
[PlyCount "105"]
[EventDate "2021.03.23"]
[EventType "swiss"]
[EventCountry "RUS"]
[SourceTitle "playchess.com"]
[Source "ChessBase"]
[SourceQuality "1"]
[TimeControl "5400+30"]

1. e4 {[%emt 0:00:00]} e5 {[%emt 0:05:53]} 2. Nf3 {[%emt 0:00:29]} Nc6 {[%emt 0:00:18]} 3. Bb5 {[%emt 0:00:56]} Nf6 {[%emt 0:01:50]} 4. d3 {[%emt 0:00:34]} Bc5 {[%emt 0:01:02]} 5. Bxc6 {[%emt 0:00:07]} dxc6 {[%emt 0:00:03]} 6. Nbd2 {[%emt 0:00:13]} Be6 {[%emt 0:00:17]} 7. Nb3 {[%emt 0:01:44]} Bb6 {[%emt 0:00:37]} 8. Bd2 {[%emt 0:06:06]} Qe7 {[%emt 0:03:25]} 9. Bc3 {[%emt 0:04:00]} Nd7 {[%emt 0:00:53]} 10. Qe2 {[%emt 0:03:56]} O-O-O {[%emt 0:09:44]} 11. Nfd2 {[%emt 0:08:40]} a6 {[%emt 0:09:40]} 12. Na5 {[%emt 0:02:30]} h5 {[%emt 0:04:41]} 13. Nac4 {[%emt 0:01:47]} Ba7 {[%emt 0:03:33]} 14. a4 {[%emt 0:02:07]} Qg5 {[%emt 0:08:06]} 15. Nf3 {[%emt 0:02:21]} Qg6 {[%emt 0:05:55]} 16. Ne3 {[%emt 0:17:59]} f6 {[%emt 0:05:49]} 17. b4 {[%emt 0:02:18]} h4 {[%emt 0:00:10]} 18. b5 {[%emt 0:04:50]} Nb8 {[%emt 0:00:04]} 19. Rb1 {[%emt 0:13:59]} h3 {[%emt 0:01:34]} 20. g3 {[%emt 0:00:18]} axb5 {[%emt 0:10:28]} 21. axb5 {[%emt 0:00:02]} Qe8 {[%emt 0:00:05]} 22. bxc6 {[%emt 0:03:09]} Nxc6 {[%emt 0:00:30]} 23. Nd2 {[%emt 0:03:29]} Qh5 {[%emt 0:04:26]} 24. Qxh5 {[%emt 0:03:04]} Rxh5 {[%emt 0:00:02]} 25. O-O {[%emt 0:00:42]} g6 {[%emt 0:06:13]} 26. Rfe1 {[%emt 0:01:02]} f5 {[%emt 0:02:49]} 27. exf5 {[%emt 0:01:57]} gxf5 {[%emt 0:00:01]} 28. Rb5 {[%emt 0:00:47]} Bd4 {[%emt 0:09:35]} 29. Bxd4 {[%emt 0:00:56]} exd4 {[%emt 0:00:04]} 30. Ng2 {[%emt 0:01:30]} Bd7 {[%emt 0:01:53]} 31. Nf4 {[%emt 0:00:05]} Rh6 {[%emt 0:00:33]} 32. Nf3 {[%emt 0:00:23]} b6 {[%emt 0:00:50]} 33. Re2 {[%emt 0:02:59]} Nb8 {[%emt 0:02:38]} 34. Rb1 {[%emt 0:01:16]} Ba4 {[%emt 0:00:32]} 35. Rb4 {[%emt 0:00:47]} b5 {[%emt 0:00:01]} 36. Rxd4 {[%emt 0:00:15]} Rf8 {[%emt 0:00:44]} 37. Rd5 {[%emt 0:00:38]} Na6 {[%emt 0:00:30]} 38. Nd4 {[%emt 0:00:53]} c5 {[%emt 0:00:59]} 39. Nxf5 {[%emt 0:01:18]} Rhf6 {[%emt 0:00:16]} 40. Nd6+ {[%emt 0:00:59]} Kb8 {[%emt 0:00:23]} 41. Ne4 {[%emt 0:01:44]} Rc6 {[%emt 0:00:08]} 42. Nxh3 {[%emt 0:01:07]} Rfc8 {[%emt 0:00:51]} 43. c3 {[%emt 0:00:18]} b4 {[%emt 0:00:25]} 44. Nf4 {[%emt 0:00:24]} Rb6 {[%emt 0:01:13]} 45. Rb2 {[%emt 0:02:15]} Ka7 {[%emt 0:00:25]} 46. c4 {[%emt 0:00:05]} Bc6 {[%emt 0:01:05]} 47. Re5 {[%emt 0:00:10]} b3 {[%emt 0:00:36]} 48. h4 {[%emt 0:02:30]} Rb4 {[%emt 0:00:41]} 49. h5 {[%emt 0:00:18]} Rcb8 {[%emt 0:00:17]} 50. Nc3 {[%emt 0:00:41]} Kb6 {[%emt 0:00:16]} 51. Re6 {[%emt 0:00:55]} Rc8 {[%emt 0:00:16]} 52. Nfd5+ {[%emt 0:00:43]} Ka5 {[%emt 0:00:05]} 53. Re1 {[%emt 0:00:04]} 1-0

[Event "Chelyabinskiy variant-A 2021"]
[Site "Chelyabinsk"]
[Date "2021.03.30"]
[Round "9.7"]
[White "Harutjunyan, Gevorg"]
[Black "Demchenko, Anton"]
[Result "1/2-1/2"]
[ECO "B57"]
[WhiteElo "2439"]
[BlackElo "2610"]
[Annotator "ChessBase"]
[PlyCount "69"]
[EventDate "2021.03.23"]
[EventType "swiss"]
[EventCountry "RUS"]
[SourceTitle "playchess.com"]
[Source "ChessBase"]
[SourceQuality "1"]
[TimeControl "5400+30"]

1. e4 {[%emt 0:00:00]} c5 {[%emt 0:00:00]} 2. Nf3 {[%emt 0:00:00]} d6 {[%emt 0:00:00]} 3. d4 {[%emt 0:00:00]} cxd4 {[%emt 0:00:00]} 4. Nxd4 {[%emt 0:00:00]} Nf6 {[%emt 0:00:00]} 5. Nc3 {[%emt 0:00:00]} Nc6 {[%emt 0:00:00]} 6. Bc4 {[%emt 0:00:18]} Bd7 {[%emt 0:00:07]} 7. h3 {[%emt 0:05:10]} e6 {[%emt 0:06:48]} 8. Be3 {[%emt 0:05:11]} Be7 {[%emt 0:02:06]} 9. Qe2 {[%emt 0:11:50]} O-O {[%emt 0:02:35]} 10. O-O-O {[%emt 0:06:01]} Nxd4 {[%emt 0:08:23]} 11. Rxd4 {[%emt 0:02:17]} a6 {[%emt 0:11:03]} 12. f4 {[%emt 0:06:33]} b5 {[%emt 0:03:25]} 13. e5 {[%emt 0:00:04]} dxe5 {[%emt 0:06:31]} 14. fxe5 {[%emt 0:01:08]} bxc4 {[%emt 0:07:13]} 15. Rhd1 {[%emt 0:05:05]} Nd5 {[%emt 0:09:18]} 16. Nxd5 {[%emt 0:00:15]} exd5 {[%emt 0:00:04]} 17. Rxd5 {[%emt 0:00:06]} Qb8 {[%emt 0:00:20]} 18. Rxd7 {[%emt 0:00:16]} c3 {[%emt 0:02:46]} 19. b3 {[%emt 0:00:58]} Qxe5 {[%emt 0:00:05]} 20. Qf3 {[%emt 0:06:49]} Bg5 {[%emt 0:05:44]} 21. Bxg5 {[%emt 0:04:55]} Qxg5+ {[%emt 0:00:04]} 22. Kb1 {[%emt 0:00:05]} Rac8 {[%emt 0:00:21]} 23. Qb7 {[%emt 0:04:37]} Rb8 {[%emt 0:04:11]} 24. Qc6 {[%emt 0:02:45]} h5 {[%emt 0:06:38]} 25. Qf3 {[%emt 0:07:16]} Rb5 {[%emt 0:04:56]} 26. R7d5 {[%emt 0:08:17]} Rxd5 {[%emt 0:00:56]} 27. Qxd5 {[%emt 0:02:02]} Qg6 {[%emt 0:03:50]} 28. Qf3 {[%emt 0:04:03]} Rc8 {[%emt 0:08:47]} 29. Rd3 {[%emt 0:04:40]} h4 {[%emt 0:01:00]} 30. a4 {[%emt 0:00:55]} a5 {[%emt 0:01:48]} 31. Ka2 {[%emt 0:07:00]} Kh7 {[%emt 0:01:35]} 32. Qd5 {[%emt 0:06:07]} Kg8 {[%emt 0:00:30]} 33. Qf3 {[%emt 0:00:16]} Kh7 {[%emt 0:00:04]} 34. Qd5 {[%emt 0:00:28]} Kg8 {[%emt 0:00:15]} 35. Qf3 {[%emt 0:00:56]} 1/2-1/2

[Event "Chelyabinskiy variant-A 2021"]
[Site "Chelyabinsk"]
[Date "2021.03.30"]
[Round "9.9"]
[White "Frolyanov, Dmitry"]
[Black "Garifullina, Leya"]
[Result "1-0"]
[ECO "E32"]
[WhiteElo "2542"]
[BlackElo "2375"]
[Annotator "ChessBase"]
[PlyCount "61"]
[EventDate "2021.03.23"]
[EventType "swiss"]
[EventCountry "RUS"]
[SourceTitle "playchess.com"]
[Source "ChessBase"]
[SourceQuality "1"]
[TimeControl "5400+30"]

1. d4 {[%emt 0:00:00]} Nf6 {[%emt 0:00:00]} 2. c4 {[%emt 0:00:00]} e6 {[%emt 0:00:00]} 3. Nc3 {[%emt 0:00:00]} Bb4 {[%emt 0:00:00]} 4. Qc2 {[%emt 0:00:00]} O-O {[%emt 0:00:19]} 5. e4 {[%emt 0:00:23]} d5 {[%emt 0:00:18]} 6. e5 {[%emt 0:00:18]} Ne4 {[%emt 0:00:05]} 7. Bd3 {[%emt 0:00:26]} c5 {[%emt 0:00:08]} 8. Nf3 {[%emt 0:00:13]} cxd4 {[%emt 0:00:11]} 9. Nxd4 {[%emt 0:00:06]} Nd7 {[%emt 0:00:21]} 10. Bf4 {[%emt 0:00:14]} Ndc5 {[%emt 0:03:33]} 11. O-O {[%emt 0:01:14]} Bxc3 {[%emt 0:00:38]} 12. bxc3 {[%emt 0:00:09]} Nxd3 {[%emt 0:00:03]} 13. Qxd3 {[%emt 0:00:10]} b6 {[%emt 0:00:37]} 14. cxd5 {[%emt 0:00:25]} Qxd5 {[%emt 0:00:06]} 15. Rfd1 {[%emt 0:00:40]} Bb7 {[%emt 0:00:59]} 16. c4 {[%emt 0:00:14]} Qa5 {[%emt 0:05:39]} 17. Nb5 {[%emt 0:00:24]} Qa4 {[%emt 0:14:29]} 18. Qb3 {[%emt 0:10:23]} Nc5 {[%emt 0:01:26]} 19. Qxa4 {[%emt 0:03:02]} Nxa4 {[%emt 0:00:48]} 20. Rd7 {[%emt 0:00:25]} Nc5 {[%emt 0:00:24]} 21. Re7 {[%emt 0:03:50]} Rfe8 {[%emt 0:05:45]} 22. Rxe8+ {[%emt 0:04:35]} Rxe8 {[%emt 0:00:03]} 23. Rd1 {[%emt 0:06:48]} Ba6 {[%emt 0:10:56]} 24. Be3 {[%emt 0:04:53]} Na4 {[%emt 0:01:29]} 25. Nc7 {[%emt 0:03:05]} Nc3 {[%emt 0:01:00]} 26. Rd2 {[%emt 0:02:10]} Rc8 {[%emt 0:01:03]} 27. Nxa6 {[%emt 0:00:12]} h6 {[%emt 0:00:03]} 28. c5 {[%emt 0:02:02]} Nd5 {[%emt 0:00:19]} 29. Rc2 {[%emt 0:01:45]} Rc6 {[%emt 0:00:16]} 30. cxb6 {[%emt 0:02:47]} Rxc2 {[%emt 0:00:12]} 31. b7 {[%emt 0:00:04]} 1-0

[Event "Chelyabinskiy variant-A 2021"]
[Site "Chelyabinsk"]
[Date "2021.03.30"]
[Round "9.10"]
[White "Afanasiev, Nikita"]
[Black "Grachev, Alexey"]
[Result "1/2-1/2"]
[ECO "A49"]
[WhiteElo "2519"]
[BlackElo "2302"]
[Annotator "ChessBase"]
[PlyCount "68"]
[EventDate "2021.03.23"]
[EventType "swiss"]
[EventCountry "RUS"]
[SourceTitle "playchess.com"]
[Source "ChessBase"]
[SourceQuality "1"]
[TimeControl "5400+30"]

1. d4 {[%emt 0:04:37]} Nf6 {[%emt 0:00:00]} 2. Nf3 {[%emt 0:00:10]} g6 {[%emt 0:00:00]} 3. g3 {[%emt 0:00:32]} Bg7 {[%emt 0:00:12]} 4. Bg2 {[%emt 0:00:06]} d5 {[%emt 0:00:21]} 5. O-O {[%emt 0:00:29]} O-O {[%emt 0:00:19]} 6. c3 {[%emt 0:00:39]} Nbd7 {[%emt 0:04:05]} 7. Bf4 {[%emt 0:02:30]} Nh5 {[%emt 0:00:49]} 8. Bg5 {[%emt 0:01:12]} h6 {[%emt 0:00:52]} 9. Bc1 {[%emt 0:00:59]} Nhf6 {[%emt 0:05:07]} 10. a4 {[%emt 0:04:44]} a5 {[%emt 0:01:50]} 11. Re1 {[%emt 0:06:12]} Re8 {[%emt 0:04:42]} 12. Bf4 {[%emt 0:12:35]} Nh5 {[%emt 0:06:28]} 13. Be3 {[%emt 0:00:27]} Nhf6 {[%emt 0:07:53]} 14. Qc1 {[%emt 0:09:38]} Kh7 {[%emt 0:06:52]} 15. c4 {[%emt 0:01:22]} c6 {[%emt 0:03:38]} 16. Bf4 {[%emt 0:05:05]} Nb8 {[%emt 0:06:05]} 17. Nbd2 {[%emt 0:14:30]} Na6 {[%emt 0:09:52]} 18. Be5 {[%emt 0:11:10]} Be6 {[%emt 0:07:12]} 19. b3 {[%emt 0:01:52]} Qb6 {[%emt 0:03:48]} 20. Qa3 {[%emt 0:07:33]} Nb4 {[%emt 0:02:00]} 21. Rac1 {[%emt 0:00:25]} Rac8 {[%emt 0:00:45]} 22. Qa1 {[%emt 0:01:00]} Kg8 {[%emt 0:01:40]} 23. h3 {[%emt 0:03:24]} Red8 {[%emt 0:03:24]} 24. Red1 {[%emt 0:03:28]} Bf5 {[%emt 0:03:46]} 25. g4 {[%emt 0:00:56]} Be6 {[%emt 0:00:39]} 26. Qb1 {[%emt 0:01:04]} h5 {[%emt 0:03:37]} 27. g5 {[%emt 0:01:38]} Ne8 {[%emt 0:00:42]} 28. Bxg7 {[%emt 0:01:16]} Nxg7 {[%emt 0:01:07]} 29. Qa1 {[%emt 0:01:21]} Bf5 {[%emt 0:01:56]} 30. e3 {[%emt 0:00:57]} Bc2 {[%emt 0:01:39]} 31. Re1 {[%emt 0:00:12]} Bf5 {[%emt 0:00:16]} 32. Red1 {[%emt 0:00:11]} Bc2 {[%emt 0:00:05]} 33. Re1 {[%emt 0:00:52]} Bf5 {[%emt 0:00:04]} 34. Red1 {[%emt 0:00:03]} Bc2 {[%emt 0:00:08]} 1/2-1/2

[Event "Chelyabinskiy variant-A 2021"]
[Site "Chelyabinsk"]
[Date "2021.03.30"]
[Round "9.11"]
[White "Shuvalova, Polina"]
[Black "Borisova, Ekaterina"]
[Result "1-0"]
[ECO "D91"]
[WhiteElo "2476"]
[BlackElo "2256"]
[Annotator "ChessBase"]
[PlyCount "51"]
[EventDate "2021.03.23"]
[EventType "swiss"]
[EventCountry "RUS"]
[SourceTitle "playchess.com"]
[Source "ChessBase"]
[SourceQuality "1"]
[TimeControl "5400+30"]

1. d4 {[%emt 0:00:00]} Nf6 {[%emt 0:00:00]} 2. c4 {[%emt 0:00:00]} g6 {[%emt 0:00:00]} 3. Nc3 {[%emt 0:00:00]} d5 {[%emt 0:00:00]} 4. Nf3 {[%emt 0:05:55]} Bg7 {[%emt 0:00:00]} 5. Bg5 {[%emt 0:00:17]} Ne4 {[%emt 0:00:00]} 6. Bh4 {[%emt 0:02:52]} Nxc3 {[%emt 0:00:02]} 7. bxc3 {[%emt 0:00:05]} dxc4 {[%emt 0:00:04]} 8. Qa4+ {[%emt 0:05:17]} Nd7 {[%emt 0:09:50]} 9. e3 {[%emt 0:01:51]} O-O {[%emt 0:00:22]} 10. Qxc4 {[%emt 0:00:11]} c5 {[%emt 0:03:52]} 11. Qa4 {[%emt 0:07:36]} cxd4 {[%emt 0:12:06]} 12. cxd4 {[%emt 0:00:34]} Qc7 {[%emt 0:00:12]} 13. Qa3 {[%emt 0:02:45]} e5 {[%emt 0:02:06]} 14. Bg3 {[%emt 0:01:45]} Re8 {[%emt 0:03:53]} 15. Bb5 {[%emt 0:08:03]} Qb6 {[%emt 0:23:24]} 16. Rb1 {[%emt 0:04:39]} Bf8 {[%emt 0:10:44]} 17. Qa4 {[%emt 0:01:37]} exd4 {[%emt 0:08:16]} 18. O-O {[%emt 0:00:35]} Nc5 {[%emt 0:00:13]} 19. Qxd4 {[%emt 0:01:20]} Re4 {[%emt 0:00:11]} 20. Qc3 {[%emt 0:05:49]} Be6 {[%emt 0:05:33]} 21. Bd3 {[%emt 0:07:12]} Na4 {[%emt 0:02:25]} 22. Qf6 {[%emt 0:02:25]} Bg7 {[%emt 0:00:09]} 23. Qxg7+ {[%emt 0:00:44]} Kxg7 {[%emt 0:00:04]} 24. Rxb6 {[%emt 0:00:05]} axb6 {[%emt 0:00:07]} 25. Bxe4 {[%emt 0:00:07]} Nc3 {[%emt 0:00:02]} 26. Be5+ {[%emt 0:00:08]} 1-0

[Event "Chelyabinskiy variant-A 2021"]
[Site "Chelyabinsk"]
[Date "2021.03.30"]
[Round "9.12"]
[White "Girya, Olga"]
[Black "Gleizerov, Evgeny"]
[Result "1-0"]
[ECO "D06"]
[WhiteElo "2432"]
[BlackElo "2468"]
[Annotator "ChessBase"]
[PlyCount "105"]
[EventDate "2021.03.23"]
[EventType "swiss"]
[EventCountry "RUS"]
[SourceTitle "playchess.com"]
[Source "ChessBase"]
[SourceQuality "1"]
[TimeControl "5400+30"]

1. d4 {[%emt 0:04:40]} d5 {[%emt 0:00:00]} 2. c4 {[%emt 0:00:16]} c5 {[%emt 0:00:00]} 3. cxd5 {[%emt 0:01:08]} Qxd5 {[%emt 0:00:00]} 4. Nf3 {[%emt 0:02:16]} cxd4 {[%emt 0:00:14]} 5. Nc3 {[%emt 0:00:24]} Qa5 {[%emt 0:00:11]} 6. Nxd4 {[%emt 0:00:17]} Nf6 {[%emt 0:00:08]} 7. a3 {[%emt 0:00:19]} g6 {[%emt 0:15:09]} 8. b4 {[%emt 0:22:28]} Qd8 {[%emt 0:05:43]} 9. Bb2 {[%emt 0:12:53]} Bg7 {[%emt 0:00:13]} 10. e3 {[%emt 0:02:35]} O-O {[%emt 0:06:23]} 11. Be2 {[%emt 0:00:13]} Nbd7 {[%emt 0:04:40]} 12. O-O {[%emt 0:05:05]} Nb6 {[%emt 0:01:19]} 13. b5 {[%emt 0:11:41]} e5 {[%emt 0:14:12]} 14. Nb3 {[%emt 0:03:11]} Be6 {[%emt 0:13:59]} 15. Nc5 {[%emt 0:04:14]} Qc8 {[%emt 0:03:16]} 16. Nxe6 {[%emt 0:11:09]} Qxe6 {[%emt 0:00:06]} 17. Rc1 {[%emt 0:00:40]} Rac8 {[%emt 0:09:58]} 18. Qc2 {[%emt 0:02:25]} Nfd5 {[%emt 0:03:17]} 19. Qb1 {[%emt 0:01:14]} e4 {[%emt 0:11:14]} 20. Nxd5 {[%emt 0:01:14]} Nxd5 {[%emt 0:00:55]} 21. Bxg7 {[%emt 0:01:30]} Kxg7 {[%emt 0:00:01]} 22. Bc4 {[%emt 0:01:03]} Qe5 {[%emt 0:00:22]} 23. Bxd5 {[%emt 0:00:59]} Qxd5 {[%emt 0:00:03]} 24. Rcd1 {[%emt 0:01:50]} Qe6 {[%emt 0:03:29]} 25. Rd4 {[%emt 0:00:30]} Rc4 {[%emt 0:01:35]} 26. Rxc4 {[%emt 0:01:24]} Qxc4 {[%emt 0:00:01]} 27. Qb2+ {[%emt 0:00:19]} f6 {[%emt 0:01:31]} 28. Rd1 {[%emt 0:00:49]} Rf7 {[%emt 0:00:26]} 29. h3 {[%emt 0:03:31]} b6 {[%emt 0:01:20]} 30. Rd4 {[%emt 0:00:54]} Qe6 {[%emt 0:00:06]} 31. Qb4 {[%emt 0:01:07]} Re7 {[%emt 0:00:17]} 32. a4 {[%emt 0:00:47]} Qe5 {[%emt 0:00:52]} 33. g3 {[%emt 0:01:04]} f5 {[%emt 0:00:18]} 34. Qd2 {[%emt 0:00:37]} Qf6 {[%emt 0:00:30]} 35. h4 {[%emt 0:00:24]} Rf7 {[%emt 0:00:42]} 36. Kg2 {[%emt 0:00:20]} Qe5 {[%emt 0:00:20]} 37. Rd5 {[%emt 0:00:40]} Qf6 {[%emt 0:00:32]} 38. Qc2 {[%emt 0:00:48]} Qe6 {[%emt 0:02:37]} 39. Qc3+ {[%emt 0:00:38]} Qf6 {[%emt 0:01:17]} 40. Qc4 {[%emt 0:01:10]} Qe6 {[%emt 0:00:34]} 41. Qc6 {[%emt 0:00:29]} Qe7 {[%emt 0:01:07]} 42. Rd6 {[%emt 0:00:35]} Qe5 {[%emt 0:00:40]} 43. Rd8 {[%emt 0:00:36]} Qf6 {[%emt 0:00:51]} 44. Qd5 {[%emt 0:00:35]} Qc3 {[%emt 0:00:41]} 45. Qc6 {[%emt 0:00:50]} Qf6 {[%emt 0:00:18]} 46. Qc8 {[%emt 0:00:24]} Kh6 {[%emt 0:00:48]} 47. Qb8 {[%emt 0:00:28]} Kg7 {[%emt 0:00:18]} 48. Rc8 {[%emt 0:00:30]} h6 {[%emt 0:00:45]} 49. Rh8 {[%emt 0:00:33]} Qe7 {[%emt 0:00:33]} 50. Qg8+ {[%emt 0:00:17]} Kf6 {[%emt 0:00:01]} 51. Rxh6 {[%emt 0:00:15]} Rg7 {[%emt 0:00:03]} 52. Qh8 {[%emt 0:00:17]} Ke5 {[%emt 0:00:28]} 53. Rxg6 {[%emt 0:00:10]} 1-0